fUSD/lending_fUSD_20240414
["ID","MTS","AMOUNT","RATE_DAILY","PERIOD"]
[322614993,1713120639479,-174.49471985,0.00020894,2]
[322614994,1713120639488,-180.792366,0.00020894,2]
[322614995,1713120639497,-212.59855795,0.00020894,2]
[322614996,1713120639506,-177.76111853,0.00020894,2]
[322614997,1713120639515,-155.0,0.00020894,2]
[322614998,1713120639525,-538.86370128,0.00020894,2]
[322614999,1713120639538,-284.60072287,0.00020894,2]
[322615000,1713120639547,-269.80614609,0.00020894,2]
[322615001,1713120639560,-578.87498114,0.00020894,2]
[322615002,1713120639569,-155.30224392,0.00020894,2]
[322615003,1713120639579,-303.65133067,0.00020894,2]
[322615004,1713120639589,-244.97936461,0.00020894,2]
[322615005,1713120639598,-155.20654588,0.00020894,2]
[322615006,1713120639608,-304.95353907,0.00020894,2]
[322615007,1713120639617,-203.85556023,0.00020894,2]
[322615008,1713120639626,-163.70329151,0.00020894,2]
[322615009,1713120639635,-210.68513398,0.00020894,2]
[322615010,1713120639644,-221.71485911,0.00020894,2]
[322615011,1713120639654,-212.11884347,0.00020894,2]
[322615012,1713120639662,-155.0,0.00020895,2]
[322615013,1713120639672,-275.40595316,0.00020895,2]
[322615014,1713120639681,-553.17144713,0.00020895,2]
[322615015,1713120639690,-644.86581108,0.00020895,2]
[322615016,1713120639699,-294.67596135,0.00020895,2]
[322615017,1713120639709,-1138.87890717,0.00020895,2]
[322615018,1713120639718,-221.81819831,0.00020896,2]
[322615019,1713120639727,-174898.3831,0.00020897,2]
[322615020,1713120639736,-155.55605703,0.00020912,2]
[322615021,1713120639745,-159.263,0.00020914,2]
[322615022,1713120639754,-1044.22682656,0.00020998,2]
[322615023,1713120639763,-165.96159661,0.00020998,2]
[322615024,1713120639772,-715.48314253,0.00021,2]
[322615025,1713120639781,-1250.0,0.00021,3]
[322615026,1713120639790,-159.263,0.0002101,2]
[322615027,1713120639799,-314.548531,0.00021096,2]
[322615028,1713120639811,-159.263,0.00021106,2]
[322615029,1713120639820,-2402.7,0.0002119,2]
[322615030,1713120639829,-159.263,0.00021203,2]
[322615031,1713120639839,-1796.0,0.000216,2]
[322615032,1713120639848,-651.34,0.00021756,2]
[322615033,1713120639857,-250.0,0.00021918,2]
[322615034,1713120639867,-250.0,0.00021918,2]
[322615035,1713120639876,-314.548531,0.00021918,2]
[322615036,1713120639885,-2171.38984213,0.00021927,2]
[322615037,1713120639894,-183.99,0.00022066,2]
[322615038,1713120639903,-293.0,0.00022415,2]
[322615039,1713120639912,-314.548531,0.0002274,2]
[322615040,1713120639921,-1000.0,0.00022813,2]
[322615041,1713120639931,-1300.0,0.00023,3]
[322615042,1713120639941,-500.0,0.00023034,2]
[322615043,1713120639951,-155.55605703,0.00023129,2]
[322615044,1713120639961,-1357.41300212,0.00023303,2]
[322615045,1713120639971,-2171.38984213,0.00023352,2]
[322615046,1713120639981,-314.548531,0.00023562,2]
[322615047,1713120639991,-200.0,0.00023768,2]
[322615048,1713120640001,-2402.7,0.00023929,2]
[322615050,1713120640011,-651.34,0.00024019,2]
[322615052,1713120640020,-314.548531,0.00024384,2]
[322615054,1713120640030,-214.0,0.00024657,2]
[322615055,1713120640039,-461.0,0.00024688,2]
[322615057,1713120640049,-2291.0,0.00024688,2]
[322615059,1713120640061,-1391.0,0.00024688,2]
[322615061,1713120640070,-968.0,0.00024688,2]
[322615063,1713120640079,-545.379,0.00024688,2]
[322615065,1713120640088,-1261.0,0.00024688,2]
[322615067,1713120640097,-430.626,0.00024688,2]
[322615068,1713120640107,-622.608,0.00024688,2]
[322615070,1713120640117,-1948.0,0.00024688,2]
[322615072,1713120640126,-280.0,0.00024688,2]
[322615074,1713120640136,-436.0,0.00024688,2]
[322615076,1713120640145,-807.0,0.00024688,2]
[322615078,1713120640154,-154.168,0.00024688,2]
[322615079,1713120640163,-1145.879,0.00024688,2]
[322615080,1713120640172,-432.715,0.00024688,2]
[322615081,1713120640182,-1472.0,0.00024688,2]
[322615082,1713120640191,-3043.0,0.00024688,2]
[322615083,1713120640200,-2440.0,0.00024688,2]
[322615084,1713120640209,-1667.217,0.00024688,2]
[322615085,1713120640218,-289.272,0.00024688,2]
[322615086,1713120640228,-355.0,0.00024688,2]
[322615087,1713120640237,-215.0,0.00024688,2]
[322615088,1713120640246,-449.469,0.00024688,2]
[322615089,1713120640256,-37623.0,0.00024688,2]
[322615090,1713120640265,-5707.0,0.00024688,2]
[322615091,1713120640274,-1315.0,0.00024688,2]
[322615092,1713120640283,-963.75975234,0.00024688,2]
[322615093,1713120640351,-3839.24024766,0.00024688,2]
[322615094,1713120640360,-182.018,0.00024688,2]
[322615095,1713120640369,-1674.48555124,0.00024777,2]
[322615096,1713120640515,-496.90429089,0.00024777,2]
[322615097,1713120640525,-341.85099426,0.000248,2]
[322615098,1713120640538,-289.72341223,0.000248,2]
[322615099,1713120640550,-1367.38126275,0.000248,2]
[322615100,1713120640562,-1350.0,0.00025,3]
[322615101,1713120640574,-2605.45039561,0.00025,2]
[322615102,1713120640583,-200.0,0.00025237,2]
[322615103,1713120640593,-1000.0,0.00025237,2]
[322615104,1713120640604,-500.0,0.00025237,2]
[322615105,1713120640616,-200.0,0.00025237,2]
[322615106,1713120640627,-155.55605703,0.00025346,2]
[322615107,1713120640637,-314.14597895,0.00025488,2]
[322615108,1713120640646,-150.0,0.000255,2]
[322615109,1713120640656,-1686.28,0.00025618,2]
[322615110,1713120640666,-1000.0,0.00025665,2]
[322615111,1713120640676,-150.0,0.00026,2]
[322615112,1713120640685,-2171.38984213,0.00026201,2]
[322615113,1713120640695,-651.34,0.00026283,2]
[322615114,1713120640704,-150.0,0.000265,2]
[322615115,1713120640713,-161.96109064,0.00026765,2]
[322615116,1713120640723,-2000.0,0.0002685,2]
[322615117,1713120640732,-200.0,0.0002685,2]
[322615118,1713120640741,-570.76258857,0.0002689,2]
[322615119,1713120640750,-156.55076502,0.0002689,2]
[322615120,1713120640760,-1400.0,0.00027,3]
[322615121,1713120640771,-150.0,0.00027,2]
[322615122,1713120640780,-2000.0,0.00027119,2]
[322615123,1713120640789,-200.0,0.00027119,2]
[322615124,1713120640798,-161.96109064,0.00027232,2]
[322615125,1713120640810,-787.0,0.00027253,2]
[322615126,1713120640818,-2000.0,0.0002739,2]
[322615127,1713120640828,-200.0,0.0002739,2]
[322615128,1713120640837,-774.98172144,0.00027397,2]
[322615129,1713120640846,-275.49,0.00027397,2]
[322615130,1713120640855,-2000.0,0.00027397,2]
[322615131,1713120640864,-290.86,0.00027397,2]
[322615132,1713120640874,-2096.78,0.000274,2]
[322615133,1713120640883,-2096.78,0.000274,2]
[322615134,1713120640892,-2096.78,0.000274,2]
[322615135,1713120640901,-2096.78,0.000274,2]
[322615136,1713120640910,-2096.78,0.000274,2]
[322615137,1713120640920,-500.0,0.00027438,2]
[322615138,1713120640929,-150.0,0.000275,2]
[322615139,1713120640938,-155.55605703,0.00027563,2]
[322615140,1713120640947,-2171.38984213,0.00027626,2]
[322615141,1713120640957,-2000.0,0.00027664,2]
[322615142,1713120640967,-200.0,0.00027664,2]
[322615143,1713120640976,-461.0,0.00027688,2]
[322615144,1713120640985,-2291.0,0.00027688,2]
[322615145,1713120640994,-1391.0,0.00027688,2]
[322615146,1713120641003,-968.0,0.00027688,2]
[322615147,1713120641012,-541.0,0.00027688,2]
[322615148,1713120641021,-1261.0,0.00027688,2]
[322615149,1713120641030,-608.0,0.00027688,2]
[322615150,1713120641039,-1948.0,0.00027688,2]
[322615151,1713120641048,-280.0,0.00027688,2]
[322615152,1713120641059,-436.0,0.00027688,2]
[322615153,1713120641068,-807.0,0.00027688,2]
[322615154,1713120641077,-150.0,0.00027688,2]
[322615155,1713120641086,-1140.0,0.00027688,2]
[322615156,1713120641095,-399.0,0.00027688,2]
[322615157,1713120641104,-1472.0,0.00027688,2]
[322615158,1713120641113,-3043.0,0.00027688,2]
[322615159,1713120641123,-2440.0,0.00027688,2]
[322615160,1713120641131,-1637.0,0.00027688,2]
[322615161,1713120641140,-150.0,0.00027688,2]
[322615162,1713120641149,-355.0,0.00027688,2]
[322615163,1713120641159,-214.0,0.00027688,2]
[322615164,1713120641168,-443.0,0.00027688,2]
[322615165,1713120641177,-37623.0,0.00027688,2]
[322615166,1713120641186,-1174.0,0.00027688,2]
[322615167,1713120641195,-4751.0,0.00027688,2]
[322615168,1713120641204,-161.96109064,0.00027699,2]
[322615169,1713120641213,-200.0,0.0002794,2]
[322615170,1713120641223,-20189.0893382,0.00028,2]
[322615171,1713120641232,-150.0,0.00028,2]
[322615172,1713120641241,-161.96109064,0.00028165,2]
[322615173,1713120641250,-11249.43,0.00028203,2]
[322615174,1713120641259,-1091.1,0.00028203,2]
[322615175,1713120641268,-8014.58,0.00028203,2]
[322615176,1713120641277,-300.0,0.00028208,2]
[322615177,1713120641287,-1291.37360342,0.00028384,2]
[322615178,1713120641297,-150.0,0.000285,2]
[322615179,1713120641307,-1000.0,0.00028516,2]
[322615180,1713120641317,-651.34,0.00028547,2]
[322615181,1713120641327,-161.96109064,0.00028632,2]
[322615182,1713120641337,-1460.15691,0.000287,2]
[322615183,1713120641347,-1460.15692,0.0002886,2]
[322615184,1713120641358,-160.61653945,0.00028909,2]
[322615185,1713120641367,-1450.0,0.00029,3]
[322615186,1713120641376,-562.05444632,0.00029,2]
[322615187,1713120641386,-6750.20773336,0.00029,2]
[322615188,1713120641395,-150.0,0.00029,2]
[322615189,1713120641405,-151.57,0.00029,2]
[322615190,1713120641414,-151.57,0.00029,2]
[322615191,1713120641423,-151.57,0.00029,2]
[322615192,1713120641433,-2171.38984213,0.00029051,2]
[322615193,1713120641443,-161.96109064,0.00029099,2]
[322615194,1713120641452,-1460.15692,0.0002917,2]
[322615195,1713120641462,-562.74532621,0.0002928,2]
[322615196,1713120641471,-3082.6451397,0.00029398,2]
[322615197,1713120641482,-369.0,0.00029453,2]
[322615198,1713120641493,-1460.15692,0.0002948,2]
[322615199,1713120641503,-444.75990606,0.000295,3]
[322615200,1713120641512,-150.0,0.000295,2]
[322615201,1713120641522,-161.96109064,0.00029566,2]
[322615202,1713120641532,-3082.6451397,0.00029637,2]
[322615203,1713120641545,-1000.0,0.0002964,10]
[322615204,1713120641554,-200.0,0.0002964,7]
[322615205,1713120641566,-500.0,0.0002964,2]
[322615206,1713120641577,-200.0,0.0002964,2]
[322615207,1713120641586,-7500.0,0.00029778,2]
[322615208,1713120641597,-150.6870399,0.00029779,2]
[322615209,1713120641606,-577.2709,0.0002978,2]
[322615210,1713120641618,-155.55605703,0.0002978,2]
[322615211,1713120641628,-1460.15692,0.0002979,2]
[322615212,1713120641637,-151.57,0.0002987,2]
[322615213,1713120641648,-155.0,0.00029876,2]
[322615214,1713120641657,-208.47667207,0.00029876,2]
[322615215,1713120641668,-3347.51452813,0.00029876,2]
[322615216,1713120641677,-1791.27358586,0.00029876,2]
[322615217,1713120641686,-441.53358594,0.00029878,2]
[322615218,1713120641696,-278.97690524,0.00029878,2]
[322615219,1713120641706,-155.0,0.00029878,2]
[322615220,1713120641717,-173.02749074,0.00029878,2]
[322615221,1713120641726,-1763.79617269,0.00029878,2]
[322615222,1713120641736,-375.59123384,0.00029878,2]
[322615223,1713120641746,-201.98830693,0.00029878,2]
[322615224,1713120641755,-155.0,0.00029878,2]
[322615225,1713120641764,-705.0409576,0.00029878,2]
[322615226,1713120641774,-2356.04018017,0.00029878,2]
[322615227,1713120641783,-191.4776989,0.00029878,2]
[322615228,1713120641792,-295.21957182,0.00029878,2]
[322615229,1713120641802,-1081.22476033,0.00029878,2]
[322615230,1713120641813,-155.0,0.00029878,2]
[322615231,1713120641823,-278.4820442,0.00029878,2]
[322615232,1713120641833,-155.0,0.00029878,2]
[322615233,1713120641842,-150.01,0.00029879,2]
[322615234,1713120641851,-1897.15333962,0.00029879,2]
[322615235,1713120641861,-354674.18273583,0.0002988,2]
[322615236,1713120641870,-10751.32243965,0.0002988,2]
[322615237,1713120641880,-2000.0,0.0002988,2]
[322615238,1713120641888,-200.0,0.0002988,2]
[322615239,1713120641898,-2000.0,0.0002988,2]
[322615240,1713120641907,-200.0,0.0002988,2]
[322615241,1713120641916,-5800.0,0.00029883,2]
[322615242,1713120641925,-5800.0,0.00029892,2]
[322615243,1713120641935,-5800.0,0.000299,2]
[322615244,1713120641945,-10000.0,0.000299,2]
[322615245,1713120641954,-160.82597771,0.000299,2]
[322615246,1713120641963,-174.28819338,0.000299,2]
[322615247,1713120641972,-150.68703977,0.0002992,2]
[322615248,1713120641981,-154.95,0.0002997,15]
[322615249,1713120641990,-601.0,0.0002997,15]
[322615250,1713120642000,-150.5,0.0002997,15]
[322615251,1713120642009,-601.0,0.0002997,15]
[322615252,1713120642019,-177.57,0.0002997,15]
[322615253,1713120642028,-251.0,0.0002997,15]
[322615254,1713120642037,-150.5,0.0002998,15]
[322615255,1713120642046,-601.0,0.0002998,15]
[322615256,1713120642056,-150.5,0.0002998,15]
[322615257,1713120642065,-601.0,0.0002998,15]
[322615258,1713120642074,-150.5,0.0002998,15]
[322615259,1713120642084,-251.0,0.0002998,15]
[322615260,1713120642093,-150.5,0.0002999,15]
[322615261,1713120642103,-172.78,0.0002999,15]
[322615262,1713120642111,-601.0,0.0002999,15]
[322615263,1713120642121,-150.5,0.0002999,15]
[322615264,1713120642130,-601.0,0.0002999,15]
[322615265,1713120642139,-150.5,0.0002999,15]
[322615266,1713120642148,-251.0,0.0002999,15]
[322615267,1713120642158,-151.57,0.0002999,2]
[322615268,1713120642167,-151.57,0.0002999,2]
[322615269,1713120642176,-151.57,0.0002999,2]
[322615270,1713120642185,-151.57,0.0002999,2]
[322615271,1713120642195,-151.57,0.0002999,2]
[322615272,1713120642204,-151.57,0.0002999,2]
[322615274,1713120642214,-151.57,0.0002999,2]
[322615275,1713120642223,-151.57,0.0002999,2]
[322615276,1713120642232,-151.57,0.0002999,2]
[322615277,1713120642242,-151.57,0.0002999,2]
[322615278,1713120642251,-151.57,0.0002999,2]
[322615279,1713120642261,-151.57,0.0002999,2]
[322615281,1713120642271,-151.57,0.0002999,2]
[322615283,1713120642281,-151.57,0.0002999,2]
[322615284,1713120642290,-151.57,0.0002999,2]
[322615285,1713120642299,-151.57,0.0002999,2]
[322615286,1713120642310,-151.57,0.0002999,2]
[322615287,1713120642320,-151.57,0.0002999,2]
[322615289,1713120642330,-151.57,0.0002999,2]
[322615291,1713120642340,-151.57,0.0002999,2]
[322615293,1713120642349,-151.57,0.0002999,2]
[322615295,1713120642358,-151.57,0.0002999,2]
[322615297,1713120642368,-151.57,0.0002999,2]
[322615299,1713120642377,-151.57,0.0002999,2]
[322615300,1713120642386,-161.29586727,0.00029999,2]
[322615302,1713120642395,-10532.01443409,0.00029999,2]
[322615304,1713120642405,-13643.41957063,0.00029999,2]
[322615306,1713120642414,-363.98449953,0.00029999,2]
[322615307,1713120642423,-500.0,0.00029999,2]
[322615308,1713120642432,-500.0,0.00029999,2]
[322615309,1713120642441,-500.0,0.00029999,2]
[322615312,1713120642451,-500.0,0.00029999,2]
[322615314,1713120642460,-500.0,0.00029999,2]
[322615315,1713120642469,-432.11188098,0.00029999,2]
[322615318,1713120642479,-210719.97045155,0.0003,2]
[322615320,1713120642492,-752368.95245877,0.0003,2]
[322615323,1713120642528,-339.86953,0.0003,2]
[322615324,1713120642583,-156.47,0.0001918,2]
[322615325,1713120642592,-314.548531,0.00025205,2]
[322615326,1713120642601,-821.661469,0.0003,2]
[322615327,1713120642674,-6827.34788468,0.0003,2]
[322615328,1713120642685,-3319.01570001,0.0003,2]
[322615340,1713120643449,-156.47,0.00020887,2]
[322615341,1713120643459,-156.47,0.0002799,2]
[322615342,1713120643468,-156.47,0.0002987,2]
[322615343,1713120643477,-490.59,0.0003,2]
[322615344,1713120643488,-176.28603122,0.0003,2]
[322615345,1713120643497,-96595.89744183,0.0003,2]
[322615346,1713120643508,-1600.0,0.0003,2]
[322615347,1713120643519,-435.67082283,0.0003,2]
[322615348,1713120643532,-9886.41356067,0.0003,2]
[322615349,1713120643549,-464.54613304,0.0003,2]
[322615350,1713120643561,-30263.1473479,0.0003,2]
[322615351,1713120643572,-401.83692064,0.0003,2]
[322615352,1713120643585,-2386.63407238,0.0003,2]
[322615353,1713120643596,-2276.99935757,0.0003,2]
[322615354,1713120643608,-1953.95400123,0.0003,2]
[322615359,1713120645651,-1042.0,0.00024688,2]
[322615360,1713120645660,-314.548531,0.00026027,2]
[322615361,1713120645670,-136.25076024,0.0002999,2]
[322615362,1713120645685,-20.21923976,0.0002999,2]
[322615363,1713120645696,-627.07979299,0.0003,2]
[322615364,1713120645709,-21230.33113534,0.0003,2]
[322615365,1713120645720,-4349.01500908,0.0003,2]
[322615366,1713120645733,-866.67264469,0.0003,2]
[322615369,1713120646135,-388644.00000061,0.0003,2]
[322615370,1713120647418,-1771.88828556,0.0003,2]
[322615371,1713120647978,-2463.03137628,0.0003,2]
[322615372,1713120650309,-1000.0,0.00020886,2]
[322615373,1713120650320,-150.01,0.00029879,2]
[322615374,1713120650330,-1517.72267169,0.00029879,2]
[322615375,1713120650339,-9689.97279662,0.0003,2]
[322615376,1713120650382,-680.49,0.0003,2]
[322615377,1713120650393,-607.97134023,0.0003,2]
[322615378,1713120650405,-2000.81106848,0.0003,2]
[322615379,1713120650418,-2949.1064038,0.0003,2]
[322615380,1713120650449,-2362.176004,0.0003,2]
[322615381,1713120650486,-1695.25890307,0.0003,2]
[322615382,1713120650529,-939.39061703,0.0003,2]
[322615383,1713120650544,-442.00189353,0.0003,2]
[322615384,1713120650556,-4834.2354911,0.0003,2]
[322615385,1713120650607,-404.4192757,0.0003,2]
[322615386,1713120650621,-387425.68780338,0.0003,2]
[322615387,1713120650662,-667.0664,0.0003,2]
[322615388,1713120650673,-3642.85020046,0.0003,2]
[322615389,1713120650685,-729.0,0.0003,2]
[322615390,1713120650696,-762.58582215,0.0003,2]
[322615391,1713120670934,1426.7046,0.00018401,2]
[322615392,1713120671977,1489.17806127,0.000154,2]
[322615393,1713120673508,300.0,0.00018401,2]
[322615394,1713120687086,509.28969222,0.00018,2]
[322615395,1713120751573,150.9336365,0.00015,2]
[322615396,1713120775519,180.58,0.00017091,2]
[322615397,1713120784717,240.0,0.0002099,15]
[322615398,1713120785165,240.0,0.0002098,15]
[322615399,1713120785674,240.0,0.0002097,15]
[322615400,1713120786101,240.0,0.0002099,15]
[322615401,1713120786566,240.0,0.0002098,15]
[322615402,1713120787799,240.0,0.0002097,15]
[322615403,1713120788350,240.0,0.0002099,15]
[322615404,1713120788657,240.0,0.0002098,15]
[322615405,1713120788832,240.0,0.0002099,15]
[322615406,1713120789007,247.67,0.0002098,15]
[322615407,1713120800847,4986.92325103,0.0001305,2]
[322615409,1713120858438,286.56833764,0.000125,2]
[322615411,1713120871722,63936.62409534,0.00015,2]
[322615412,1713120871750,16863.22937573,0.00015,2]
[322615416,1713120905602,180.34,0.00015373,2]
[322615417,1713120906316,207.99816825,0.0001305,2]
[322615418,1713120916684,786.41778671,0.0001305,2]
[322615419,1713120930828,1800.0,0.0001305,2]
[322615420,1713120955747,900.0,0.00014,2]
[322615421,1713121024682,176.0,0.0002099,15]
[322615422,1713121025035,176.0,0.0002098,15]
[322615423,1713121025519,176.0,0.0002097,15]
[322615424,1713121026014,176.0,0.0002099,15]
[322615425,1713121026489,176.0,0.0002098,15]
[322615426,1713121027123,176.0,0.0002097,15]
[322615427,1713121028244,176.0,0.0002099,15]
[322615428,1713121029358,176.0,0.0002098,15]
[322615429,1713121029787,176.0,0.0002099,15]
[322615430,1713121030358,180.0,0.0002098,15]
[322615431,1713121133154,160.0,0.00025513,120]
[322615432,1713121133309,160.0,0.00027833,120]
[322615433,1713121251384,1174.93,0.00015951,2]
[322615434,1713121261615,6024.36,0.00017826,2]
[322615435,1713121275462,218.83,0.00014261,2]
[322615436,1713121280020,362.75793443,0.00018011,2]
[322615437,1713121297048,532.4738176,0.00018011,2]
[322615438,1713121302458,1000.0,0.00018011,2]
[322615439,1713121307370,500.0,0.00017917,2]
[322615440,1713121318361,2538.14948095,0.00013508,2]
[322615441,1713121318697,325.27031537,0.00018011,2]
[322615442,1713121319857,575.15646557,0.00018011,2]
[322615443,1713121322244,200.0,0.00017979,2]
[322615444,1713121329935,2333.49352179,0.00013508,2]
[322615445,1713121339129,9117.94,0.00017945,2]
[322615446,1713121386533,202.07075132,0.00018011,2]
[322615447,1713121388614,1000.0,0.00018011,2]
[322615448,1713121389403,23900.0,0.00017966,2]
[322615449,1713121392870,325.27031537,0.00018011,2]
[322615450,1713121404067,169.99,0.00014375,2]
[322615451,1713121407148,1468.08,0.00017966,2]
[322615452,1713121455197,1000.0,0.00018011,2]
[322615453,1713121510850,465.79,0.00017975,2]
[322615454,1713121533691,1000.0,0.00018011,2]
[322615456,1713121558549,164.29423485,0.00018011,2]
[322615457,1713121582866,250.0,0.00017966,2]
[322615458,1713121592429,1657.82,0.00017933,2]
[322615459,1713121601341,1000.0,0.00018011,2]
[322615460,1713121619398,500.0,0.00017937,2]
[322615461,1713121627178,160.39,0.0001796,2]
[322615465,1713121682649,1000.0,0.00018011,2]
[322615466,1713121690546,200.0,0.00017756,2]
[322615467,1713121696785,159.66,0.00017795,2]
[322615468,1713121700213,768.29,0.00017795,2]
[322615469,1713121700432,768.29,0.000178,2]
[322615470,1713121700579,768.29,0.00017804,2]
[322615471,1713121700845,768.29,0.00017809,2]
[322615472,1713121701100,768.29,0.00017814,2]
[322615473,1713121701447,768.29,0.00017818,2]
[322615474,1713121702065,768.29,0.00017823,2]
[322615475,1713121702144,768.29,0.00017828,2]
[322615476,1713121702193,768.29,0.00017832,2]
[322615477,1713121702411,768.29,0.00017837,2]
[322615478,1713121702644,768.29,0.00017842,2]
[322615479,1713121702824,768.29,0.00017846,2]
[322615480,1713121703086,768.29,0.00017851,2]
[322615481,1713121703261,768.29,0.00017856,2]
[322615482,1713121703668,768.29,0.00017861,2]
[322615483,1713121703882,768.29,0.00017865,2]
[322615484,1713121704143,768.29,0.0001787,2]
[322615485,1713121704387,768.29,0.00017875,2]
[322615486,1713121704623,768.29,0.00017879,2]
[322615487,1713121704896,768.29,0.00017884,2]
[322615488,1713121712410,1390.21,0.00017793,2]
[322615489,1713121721145,4920.91,0.00017829,2]
[322615490,1713121726985,150.0,0.00017863,2]
[322615499,1713121748785,7821.99,0.00018011,2]
[322615504,1713121767180,155.55605703,0.00017922,2]
[322615505,1713121769224,1000.0,0.00018011,2]
[322615506,1713121769546,1264.58,0.00015945,2]
[322615507,1713121788010,2671.29988965,0.00018072,7]
[322615509,1713121800052,500.0,0.00017805,2]
[322615510,1713121814079,-1745.83354019,0.00018012,2]
[322615511,1713121814100,-150.0,0.00018022,2]
[322615512,1713121814121,-300.0,0.00018022,2]
[322615513,1713121814142,-23322.26226182,0.00018023,2]
[322615514,1713121814163,-150.0,0.00018095,2]
[322615515,1713121814183,-1656.13,0.0001811,2]
[322615516,1713121814202,-3308.0,0.00018168,2]
[322615517,1713121814222,-650.94,0.00018189,2]
[322615518,1713121814243,-150.0,0.00018189,2]
[322615519,1713121814263,-1264.58,0.00018209,2]
[322615520,1713121814285,-2914.93,0.00018215,2]
[322615521,1713121814308,-150.0,0.00018284,2]
[322615522,1713121814327,-299.99,0.00018284,4]
[322615523,1713121814348,-150.0,0.00018378,2]
[322615524,1713121814368,-150.0,0.00018472,2]
[322615525,1713121814387,-169.56,0.000185,2]
[322615526,1713121814410,-160.0,0.00018555,2]
[322615527,1713121814430,-150.0,0.00018567,2]
[322615528,1713121814450,-150.0,0.00018661,2]
[322615529,1713121814473,-150.0,0.00018755,2]
[322615530,1713121814496,-600.0,0.000188,6]
[322615531,1713121814517,-150.0,0.0001885,2]
[322615532,1713121814539,-1300.0,0.000189,6]
[322615533,1713121814561,-172.48,0.00018904,2]
[322615534,1713121814582,-155.55605703,0.00018926,2]
[322615535,1713121814603,-150.0,0.00018944,2]
[322615536,1713121814623,-298.92910282,0.00019,2]
[322615537,1713121814644,-1000.0,0.00019023,2]
[322615538,1713121814665,-244.0412895,0.00019023,2]
[322615539,1713121814687,-8786.76774864,0.00019023,2]
[322615572,1713121831704,-298.92910282,0.00019,2]
[322615573,1713121831713,-81.61089718,0.00019023,2]
[322615574,1713121831725,-6381.66905669,0.00019023,2]
[322615575,1713121831737,-1057.6,0.00019023,2]
[322615576,1713121831764,-4480.79283856,0.00019023,2]
[322615577,1713121831777,-396.82991132,0.00019023,2]
[322615578,1713121831788,-290.0,0.00019023,2]
[322615579,1713121831800,-1399.99999996,0.00019023,2]
[322615580,1713121831811,-417.27522362,0.00019023,2]
[322615581,1713121831823,-363.76455997,0.00019023,2]
[322615582,1713121831834,-447.53187127,0.00019023,2]
[322615583,1713121831845,-339293.0000102,0.00019023,2]
[322615584,1713121831857,-71035.00004,0.00019023,2]
[322615585,1713121831869,-43338.80281258,0.00019023,2]
[322615586,1713121831881,-410.49314501,0.00019023,2]
[322615587,1713121831893,-791.89364507,0.00019023,2]
[322615588,1713121832012,-1451.45000021,0.00019023,2]
[322615590,1713121832024,-6302.99500001,0.00019023,2]
[322615592,1713121832035,-4050.0,0.00019023,2]
[322615598,1713121832079,-789.29286824,0.00019023,2]
[322615600,1713121832091,-5303.3560839,0.00019023,2]
[322615602,1713121832103,-1688.08803601,0.00019023,2]
[322615605,1713121832114,-19715.81656156,0.00019023,2]
[322615607,1713121832126,-826.3254998,0.00019023,2]
[322615609,1713121832138,-500.0,0.00019023,2]
[322615614,1713121832169,-1962.53935742,0.00019023,2]